fUSD/lending_fUSD_20260404
["ID","MTS","AMOUNT","RATE_DAILY","PERIOD"]
[419659803,1775261449294,-500.0,0.00041095,120]
[419659804,1775261449303,-500.0,0.00041095,120]
[419659805,1775261449313,-500.0,0.00041095,120]
[419659806,1775261449322,-500.0,0.00041095,120]
[419659807,1775261449332,-500.0,0.00041095,120]
[419659808,1775261449341,-500.0,0.00041095,120]
[419659809,1775261449351,-1423.61,0.00041095,120]
[419659810,1775261449360,-500.0,0.00041095,120]
[419659811,1775261449370,-500.0,0.00041095,120]
[419659812,1775261449379,-500.0,0.00041095,120]
[419659813,1775261449388,-500.0,0.00041095,120]
[419659814,1775261449398,-500.0,0.00041095,120]
[419659815,1775261449408,-500.0,0.00041095,120]
[419659816,1775261449418,-2422.2,0.00041095,120]
[419659817,1775261449427,-500.0,0.00041095,120]
[419659818,1775261449436,-500.0,0.00041095,60]
[419659819,1775261449446,-500.22,0.00041095,120]
[419659820,1775261449455,-500.0,0.00041095,120]
[419659821,1775261449464,-500.0,0.00041095,120]
[419659822,1775261449474,-500.0,0.00041095,120]
[419659823,1775261449483,-244.86439802,0.00041095,120]
[419659824,1775261449492,-500.0,0.00041095,120]
[419659825,1775261449502,-500.0,0.00041095,120]
[419659826,1775261449511,-500.0,0.00041095,120]
[419659827,1775261449521,-500.0,0.00041095,120]
[419659828,1775261449530,-500.0,0.00041095,120]
[419659829,1775261449540,-623.90531118,0.00041095,120]
[419659830,1775261449549,-500.0,0.00041095,120]
[419659831,1775261449559,-500.0,0.00041095,120]
[419659832,1775261449568,-500.0,0.00041095,120]
[419659833,1775261449578,-500.0,0.00041095,120]
[419659834,1775261449588,-1208.15,0.00041095,120]
[419659835,1775261449597,-967.78,0.00041095,120]
[419659836,1775261449607,-500.0,0.00041095,120]
[419659837,1775261449616,-500.0,0.00041095,120]
[419659838,1775261449625,-774.16,0.00041095,120]
[419659839,1775261449634,-519.11,0.00041095,120]
[419659840,1775261449643,-500.0,0.00041095,120]
[419659841,1775261449653,-500.0,0.00041095,120]
[419659842,1775261449665,-500.0,0.00041095,120]
[419659843,1775261449676,-500.0,0.00041095,120]
[419659844,1775261449686,-500.0,0.00041095,120]
[419659845,1775261449791,-500.0,0.00041095,120]
[419659846,1775261449800,-500.0,0.00041095,120]
[419659847,1775261449810,-500.0,0.00041095,120]
[419659848,1775261449819,-500.0,0.00041095,24]
[419659849,1775261449830,-500.0,0.00041095,120]
[419659850,1775261449840,-500.0,0.00041095,120]
[419659851,1775261449851,-500.0,0.00041095,120]
[419659852,1775261449860,-1080.26,0.00041095,120]
[419659853,1775261449870,-500.0,0.00041095,120]
[419659854,1775261449880,-500.0,0.00041095,120]
[419659855,1775261449889,-324.84221972,0.00041095,120]
[419659856,1775261449899,-500.0,0.00041095,120]
[419659857,1775261449909,-500.0,0.00041095,120]
[419659858,1775261449919,-500.0,0.00041095,120]
[419659859,1775261449928,-500.0,0.00041095,120]
[419659860,1775261449938,-500.0,0.00041095,120]
[419659861,1775261449949,-500.0,0.00041095,120]
[419659862,1775261449959,-500.0,0.00041095,120]
[419659863,1775261449969,-500.0,0.00041095,120]
[419659864,1775261449979,-756.94,0.00041095,120]
[419659865,1775261449990,-500.0,0.00041095,120]
[419659866,1775261449999,-500.0,0.00041095,120]
[419659867,1775261450009,-638.76,0.00041095,120]
[419659868,1775261450019,-500.0,0.00041095,120]
[419659869,1775261450029,-500.0,0.00041095,120]
[419659870,1775261450038,-500.0,0.00041095,120]
[419659871,1775261450047,-937.22,0.00041095,120]
[419659872,1775261450056,-500.0,0.00041095,120]
[419659873,1775261450065,-1019.63,0.00041095,120]
[419659874,1775261450075,-500.0,0.00041095,120]
[419659875,1775261450085,-500.0,0.00041095,120]
[419659876,1775261450094,-500.0,0.00041095,120]
[419659877,1775261450103,-500.0,0.00041095,120]
[419659878,1775261450112,-500.0,0.00041095,120]
[419659879,1775261450122,-500.0,0.00041095,120]
[419659880,1775261450131,-634.47,0.00041095,120]
[419659881,1775261450140,-500.0,0.00041095,60]
[419659882,1775261450150,-500.0,0.00041095,120]
[419659883,1775261450159,-151.43831607,0.00041095,120]
[419659884,1775261450168,-1100.4,0.00041095,120]
[419659885,1775261450178,-500.0,0.00041095,120]
[419659886,1775261450187,-500.0,0.00041095,120]
[419659887,1775261450197,-500.0,0.00041095,120]
[419659888,1775261450206,-500.0,0.00041095,120]
[419659889,1775261450215,-500.0,0.00041095,120]
[419659890,1775261450224,-500.0,0.00041095,120]
[419659891,1775261450234,-500.0,0.00041095,120]
[419659892,1775261450243,-500.0,0.00041095,120]
[419659893,1775261450252,-500.0,0.00041095,120]
[419659894,1775261450262,-500.0,0.00041095,120]
[419659895,1775261450271,-500.0,0.00041095,120]
[419659896,1775261450281,-500.0,0.00041095,120]
[419659897,1775261450290,-813.81,0.00041095,120]
[419659898,1775261450299,-500.0,0.00041095,120]
[419659899,1775261450309,-500.0,0.00041095,120]
[419659900,1775261450318,-500.0,0.00041095,120]
[419659901,1775261450328,-873.81,0.00041095,120]
[419659902,1775261450337,-500.0,0.00041095,120]
[419659903,1775261450347,-500.0,0.00041095,120]
[419659904,1775261450356,-1193.84,0.00041095,120]
[419659905,1775261450365,-500.0,0.00041095,120]
[419659906,1775261450375,-500.0,0.00041095,120]
[419659907,1775261450384,-500.0,0.00041095,120]
[419659908,1775261450394,-500.0,0.00041095,120]
[419659909,1775261450403,-843.6,0.00041095,120]
[419659910,1775261450412,-500.0,0.00041095,120]
[419659911,1775261450422,-500.0,0.00041095,120]
[419659912,1775261450431,-500.0,0.00041095,120]
[419659913,1775261450440,-500.0,0.00041095,120]
[419659914,1775261450450,-500.0,0.00041095,120]
[419659915,1775261450459,-500.0,0.00041095,120]
[419659916,1775261450468,-2230.54,0.00041095,120]
[419659917,1775261450477,-500.0,0.00041095,120]
[419659918,1775261450486,-500.0,0.00041095,120]
[419659919,1775261450495,-752.63,0.00041095,90]
[419659920,1775261450504,-500.0,0.00041095,120]
[419659921,1775261450513,-500.0,0.00041095,120]
[419659922,1775261450523,-500.0,0.00041095,120]
[419659923,1775261450533,-500.0,0.00041095,120]
[419659924,1775261450542,-500.0,0.00041095,120]
[419659925,1775261450551,-500.0,0.00041095,120]
[419659926,1775261450560,-500.0,0.00041095,120]
[419659927,1775261450570,-2076.75,0.00041095,120]
[419659928,1775261450579,-547.76339716,0.00041095,120]
[419659929,1775261450589,-891.58,0.00041095,120]
[419659930,1775261450598,-500.0,0.00041095,120]
[419659931,1775261450608,-2476.31,0.00041095,120]
[419659932,1775261450617,-500.0,0.00041095,120]
[419659933,1775261450627,-500.0,0.00041095,30]
[419659934,1775261450636,-500.0,0.00041095,120]
[419659935,1775261450645,-500.0,0.00041095,120]
[419659936,1775261450654,-500.0,0.00041095,120]
[419659937,1775261450663,-500.0,0.00041095,120]
[419659938,1775261450673,-500.0,0.00041095,120]
[419659939,1775261450682,-500.0,0.00041095,120]
[419659940,1775261450691,-500.0,0.00041095,120]
[419659941,1775261450700,-500.0,0.00041095,120]
[419659942,1775261450709,-681.56,0.00041095,120]
[419659943,1775261450718,-237.79052683,0.00041095,120]
[419659944,1775261450727,-500.0,0.00041095,120]
[419659945,1775261450737,-500.0,0.00041095,120]
[419659946,1775261450748,-263.22545825,0.00041095,120]
[419659947,1775261450758,-500.0,0.00041095,120]
[419659948,1775261450768,-500.0,0.00041095,120]
[419659949,1775261450777,-500.0,0.00041095,120]
[419659950,1775261450787,-500.0,0.00041095,120]
[419659951,1775261450796,-500.0,0.00041095,120]
[419659952,1775261450806,-500.0,0.00041095,120]
[419659953,1775261450815,-500.0,0.00041095,120]
[419659954,1775261450824,-500.0,0.00041095,120]
[419659955,1775261450834,-605.43,0.00041095,120]
[419659956,1775261450843,-500.0,0.00041095,120]
[419659957,1775261450852,-1377.46,0.00041095,120]
[419659958,1775261450861,-581.89,0.00041095,120]
[419659959,1775261450870,-524.81806659,0.00041095,120]
[419659960,1775261450879,-500.0,0.00041095,120]
[419659961,1775261450889,-500.0,0.00041095,120]
[419659962,1775261450898,-1066.0,0.00041095,120]
[419659963,1775261450909,-1883.66,0.00041095,120]
[419659964,1775261450919,-151.296709,0.00041095,120]
[419659965,1775261450929,-500.0,0.00041095,120]
[419659966,1775261450939,-500.0,0.00041095,120]
[419659967,1775261450948,-500.0,0.00041095,120]
[419659968,1775261450957,-500.0,0.00041095,120]
[419659969,1775261450968,-1330.24,0.00041095,120]
[419659970,1775261450977,-500.0,0.00041095,120]
[419659971,1775261450986,-500.0,0.00041095,120]
[419659972,1775261450996,-500.0,0.00041095,120]
[419659973,1775261451005,-500.0,0.00041095,120]
[419659974,1775261451014,-151.0,0.00041095,120]
[419659975,1775261451024,-500.0,0.00041095,120]
[419659976,1775261451034,-151.0,0.00041095,7]
[419659977,1775261451043,-500.0,0.00041095,120]
[419659978,1775261451052,-263.39309108,0.00041095,120]
[419659979,1775261451062,-1164.93,0.00041095,120]
[419659980,1775261451071,-468.07997014,0.00041095,120]
[419659981,1775261451080,-151.0,0.00041095,7]
[419659982,1775261451090,-500.0,0.00041095,120]
[419659983,1775261451100,-1203.8,0.00041095,30]
[419659984,1775261451109,-500.0,0.00041095,120]
[419659985,1775261451119,-500.0,0.00041095,90]
[419659986,1775261451129,-800.18,0.00041095,120]
[419659987,1775261451138,-500.0,0.00041095,120]
[419659988,1775261451149,-500.0,0.00041095,120]
[419659989,1775261451158,-1132.45,0.00041095,120]
[419659990,1775261451167,-500.0,0.00041095,120]
[419659991,1775261451176,-571.98365132,0.00041095,120]
[419659992,1775261451186,-500.0,0.00041095,16]
[419659993,1775261451196,-500.0,0.00041095,120]
[419659994,1775261451206,-500.0,0.00041095,26]
[419659995,1775261451216,-500.0,0.00041095,120]
[419659996,1775261451224,-500.0,0.00041095,120]
[419659997,1775261451234,-500.0,0.00041095,120]
[419659998,1775261451244,-500.0,0.00041095,120]
[419659999,1775261451253,-500.0,0.00041095,120]
[419660000,1775261451263,-500.0,0.00041095,120]
[419660001,1775261451272,-2084.37,0.00041095,120]
[419660002,1775261451281,-2381.33,0.00041095,120]
[419660003,1775261451291,-500.0,0.00041095,60]
[419660004,1775261451300,-500.0,0.00041095,120]
[419660005,1775261451309,-500.0,0.00041095,2]
[419660006,1775261451319,-500.0,0.00041095,120]
[419660007,1775261451329,-592.65,0.00041095,120]
[419660008,1775261451338,-500.0,0.00041095,120]
[419660009,1775261451348,-500.0,0.00041095,120]
[419660010,1775261451357,-500.0,0.00041095,120]
[419660011,1775261451366,-500.0,0.00041095,120]
[419660012,1775261451375,-1203.9,0.00041095,120]
[419660013,1775261451384,-500.0,0.00041095,120]
[419660014,1775261451394,-500.0,0.00041095,120]
[419660015,1775261451403,-500.0,0.00041095,120]
[419660016,1775261451412,-500.0,0.00041095,120]
[419660017,1775261451421,-807.09,0.00041095,120]
[419660018,1775261451431,-511.84,0.00041095,120]
[419660019,1775261451440,-13397.04,0.00041095,120]
[419660020,1775261451449,-802.2,0.00041095,30]
[419660021,1775261451458,-500.0,0.00041095,120]
[419660022,1775261451468,-500.0,0.00041095,120]
[419660023,1775261451477,-500.0,0.00041095,120]
[419660024,1775261451486,-500.0,0.00041095,120]
[419660025,1775261451496,-500.0,0.00041095,120]
[419660026,1775261451506,-1084.2,0.00041095,120]
[419660027,1775261451515,-500.0,0.00041095,120]
[419660028,1775261451524,-550.38,0.00041095,120]
[419660029,1775261451533,-500.0,0.00041095,120]
[419660030,1775261451542,-3683.22,0.00041095,120]
[419660031,1775261451552,-500.0,0.00041095,120]
[419660032,1775261451561,-500.0,0.00041095,120]
[419660033,1775261451571,-500.0,0.00041095,120]
[419660034,1775261451580,-1504.7,0.00041095,120]
[419660035,1775261451590,-500.0,0.00041095,120]
[419660036,1775261451600,-500.0,0.00041095,120]
[419660037,1775261451609,-500.0,0.00041095,120]
[419660038,1775261451618,-500.0,0.00041095,120]
[419660039,1775261451627,-1839.63,0.00041095,120]
[419660040,1775261451637,-500.0,0.00041095,120]
[419660041,1775261451646,-500.0,0.00041095,120]
[419660042,1775261451655,-545.79798077,0.00041095,120]
[419660043,1775261451664,-500.0,0.00041095,120]
[419660044,1775261451673,-426.06422479,0.00041095,120]
[419660045,1775261451682,-1208.58,0.00041095,120]
[419660046,1775261451691,-2683.34,0.00041095,120]
[419660047,1775261451701,-500.0,0.00041095,120]
[419660048,1775261451710,-993.3,0.00041095,120]
[419660049,1775261451719,-500.0,0.00041095,120]
[419660050,1775261451728,-876.99,0.00041095,120]
[419660051,1775261451737,-500.0,0.00041095,120]
[419660052,1775261451746,-913.12,0.00041095,120]
[419660053,1775261451755,-820.98,0.00041095,120]
[419660054,1775261451764,-1122.86,0.00041095,120]
[419660055,1775261451773,-890.09,0.00041095,120]
[419660056,1775261451782,-500.0,0.00041095,120]
[419660057,1775261451791,-500.0,0.00041095,120]
[419660058,1775261451801,-455.86294533,0.00041095,120]
[419660059,1775261451811,-504.58,0.00041095,120]
[419660060,1775261451821,-500.0,0.00041095,120]
[419660061,1775261451831,-500.0,0.00041095,120]
[419660062,1775261451840,-500.0,0.00041095,120]
[419660063,1775261451849,-1367.36,0.00041095,120]
[419660064,1775261451859,-1124.88,0.00041095,120]
[419660065,1775261451869,-500.0,0.00041095,120]
[419660066,1775261451878,-500.0,0.00041095,120]
[419660067,1775261451887,-603.15,0.00041095,120]
[419660068,1775261451896,-1338.26,0.00041095,120]
[419660069,1775261451906,-1950.51,0.00041095,120]
[419660070,1775261451916,-500.0,0.00041095,120]
[419660071,1775261451927,-1545.12,0.00041095,120]
[419660072,1775261451936,-500.0,0.00041095,120]
[419660073,1775261451946,-500.0,0.00041095,120]
[419660074,1775261451957,-500.0,0.00041095,120]
[419660075,1775261451967,-500.0,0.00041095,120]
[419660076,1775261451977,-2659.45,0.00041095,120]
[419660077,1775261451987,-629.17334657,0.00041095,120]
[419660078,1775261451996,-500.0,0.00041095,120]
[419660079,1775261452006,-500.0,0.00041095,120]
[419660080,1775261452016,-500.0,0.00041095,120]
[419660081,1775261452025,-500.0,0.00041095,120]
[419660082,1775261452034,-500.0,0.00041095,120]
[419660083,1775261452043,-1209.22,0.00041095,120]
[419660084,1775261452054,-500.0,0.00041095,120]
[419660085,1775261452064,-1456.05,0.00041095,120]
[419660086,1775261452074,-500.0,0.00041095,120]
[419660087,1775261452084,-500.0,0.00041095,120]
[419660088,1775261452093,-1051.15,0.00041095,120]
[419660089,1775261452103,-500.0,0.00041095,120]
[419660090,1775261452112,-527.51534445,0.00041095,120]
[419660091,1775261452122,-1612.89,0.00041095,120]
[419660092,1775261452132,-500.0,0.00041095,120]
[419660093,1775261452142,-151.0,0.00041095,120]
[419660094,1775261452152,-2810.67,0.00041095,120]
[419660095,1775261452161,-2182.32,0.00041095,120]
[419660096,1775261452171,-500.0,0.00041095,120]
[419660097,1775261452181,-3577.3,0.00041095,2]
[419660098,1775261452190,-500.0,0.00041095,120]
[419660099,1775261452201,-500.0,0.00041095,120]
[419660100,1775261452212,-500.0,0.00041095,120]
[419660101,1775261452223,-500.0,0.00041095,120]
[419660102,1775261452232,-500.0,0.00041095,120]
[419660103,1775261452242,-500.0,0.00041095,120]
[419660104,1775261452251,-500.0,0.00041095,120]
[419660105,1775261452260,-500.0,0.00041095,120]
[419660106,1775261452270,-322.64801491,0.00041095,120]
[419660107,1775261452279,-500.0,0.00041095,120]
[419660108,1775261452288,-177.35961734,0.00041095,120]
[419660109,1775261452297,-500.0,0.00041095,120]
[419660110,1775261452308,-500.0,0.00041095,120]
[419660111,1775261452317,-500.0,0.00041095,120]
[419660112,1775261452326,-1344.86,0.00041095,120]
[419660113,1775261452336,-500.0,0.00041095,120]
[419660114,1775261452345,-500.0,0.00041095,120]
[419660115,1775261452355,-1029.14,0.00041095,120]
[419660116,1775261452364,-500.0,0.00041095,120]
[419660117,1775261452373,-500.0,0.00041095,120]
[419660118,1775261452383,-295.96310463,0.00041095,120]
[419660119,1775261452392,-500.0,0.00041095,120]
[419660120,1775261452401,-500.0,0.00041095,120]
[419660121,1775261452411,-637.5,0.00041095,120]
[419660122,1775261452421,-500.0,0.00041095,120]
[419660123,1775261452431,-1384.91,0.00041095,120]
[419660124,1775261452440,-500.0,0.00041095,120]
[419660125,1775261452450,-500.0,0.00041095,120]
[419660126,1775261452459,-500.0,0.00041095,120]
[419660127,1775261452469,-1118.26,0.00041095,120]
[419660128,1775261452478,-1218.0,0.00041095,120]
[419660129,1775261452487,-500.0,0.00041095,120]
[419660130,1775261452497,-500.0,0.00041095,120]
[419660131,1775261452506,-1556.78,0.00041095,120]
[419660132,1775261452516,-1453.77,0.00041095,120]
[419660133,1775261452525,-500.0,0.00041095,120]
[419660134,1775261452534,-1119.18,0.00041095,120]
[419660135,1775261452543,-1241.84,0.00041095,120]
[419660136,1775261452553,-500.0,0.00041095,120]
[419660137,1775261452562,-500.0,0.00041095,120]
[419660138,1775261452571,-500.0,0.00041095,120]
[419660139,1775261452580,-574.04373805,0.00041095,120]
[419660140,1775261452589,-500.0,0.00041095,120]
[419660141,1775261452599,-254.26827,0.00041095,120]
[419660142,1775261452609,-500.0,0.00041095,120]
[419660143,1775261452618,-500.0,0.00041095,120]
[419660144,1775261452628,-500.0,0.00041095,120]
[419660145,1775261452639,-1857.7,0.00041095,120]
[419660146,1775261452648,-500.0,0.00041095,120]
[419660147,1775261452657,-1187.49,0.00041095,120]
[419660148,1775261452666,-2190.04,0.00041095,120]
[419660149,1775261452676,-500.0,0.00041095,120]
[419660150,1775261452685,-500.0,0.00041095,120]
[419660151,1775261452695,-405.37256903,0.00041095,120]
[419660152,1775261452704,-988.87,0.00041095,120]
[419660153,1775261452714,-2450.93,0.00041095,120]
[419660154,1775261452723,-500.0,0.00041095,120]
[419660155,1775261452732,-500.0,0.00041095,120]
[419660156,1775261452743,-500.0,0.00041095,120]
[419660157,1775261452752,-1541.82,0.00041095,120]
[419660158,1775261452763,-500.0,0.00041095,120]
[419660159,1775261452772,-544.89476625,0.00041095,120]
[419660160,1775261452783,-500.0,0.00041095,120]
[419660161,1775261452792,-500.0,0.00041095,120]
[419660162,1775261452801,-500.0,0.00041095,120]
[419660163,1775261452810,-500.0,0.00041095,120]
[419660164,1775261452819,-500.0,0.00041095,120]
[419660165,1775261452829,-500.0,0.00041095,120]
[419660166,1775261452838,-384.38901469,0.00041095,120]
[419660167,1775261452847,-500.0,0.00041095,120]
[419660168,1775261452856,-2281.59,0.00041095,120]
[419660169,1775261452865,-500.0,0.00041095,120]
[419660170,1775261452874,-2123.48,0.00041095,120]
[419660171,1775261452883,-500.0,0.00041095,60]
[419660172,1775261452893,-1248.48,0.00041095,120]
[419660173,1775261452902,-1374.82,0.00041095,120]
[419660174,1775261452912,-500.0,0.00041095,120]
[419660175,1775261452922,-500.0,0.00041095,120]
[419660176,1775261452931,-2850.34,0.00041095,120]
[419660177,1775261452941,-500.0,0.00041095,120]
[419660178,1775261452950,-500.0,0.00041095,120]
[419660179,1775261452959,-500.0,0.00041095,120]
[419660180,1775261452968,-500.0,0.00041095,120]
[419660181,1775261452977,-500.0,0.00041095,120]
[419660182,1775261452986,-531.78642996,0.00041095,120]
[419660183,1775261452996,-500.0,0.00041095,120]
[419660184,1775261453005,-500.0,0.00041095,120]
[419660185,1775261453014,-1308.32,0.00041095,120]
[419660186,1775261453024,-500.0,0.00041095,120]
[419660187,1775261453033,-1174.39,0.00041095,120]
[419660188,1775261453042,-1438.23,0.00041095,120]
[419660189,1775261453051,-2606.2,0.00041095,120]
[419660190,1775261453061,-500.0,0.00041095,120]
[419660191,1775261453071,-500.0,0.00041095,120]
[419660192,1775261453080,-1601.3,0.00041095,120]
[419660193,1775261453089,-151.0,0.00041095,120]
[419660194,1775261453099,-500.0,0.00041095,120]
[419660195,1775261453108,-1705.22,0.00041095,120]
[419660196,1775261453117,-1194.44,0.00041095,120]
[419660197,1775261453126,-151.0,0.00041095,120]
[419660198,1775261453135,-1356.31,0.00041095,120]
[419660199,1775261453144,-500.0,0.00041095,120]
[419660200,1775261453153,-2369.85,0.00041095,120]
[419660201,1775261453162,-500.0,0.00041095,120]
[419660202,1775261453172,-3406.05,0.00041095,120]
[419660203,1775261453181,-500.0,0.00041095,120]
[419660204,1775261453191,-500.0,0.00041095,120]
[419660205,1775261453200,-589.21,0.00041095,120]
[419660206,1775261453209,-500.0,0.00041095,120]
[419660207,1775261453218,-500.0,0.00041095,120]
[419660208,1775261453228,-3062.41,0.00041095,120]
[419660209,1775261453237,-645.44,0.00041095,120]
[419660210,1775261453246,-500.0,0.00041095,120]
[419660211,1775261453255,-500.0,0.00041095,120]
[419660212,1775261453264,-974.55,0.00041095,120]
[419660213,1775261453273,-3634.01,0.00041095,120]
[419660214,1775261453282,-500.0,0.00041095,120]
[419660215,1775261453291,-500.0,0.00041095,120]
[419660216,1775261453300,-500.0,0.00041095,120]
[419660217,1775261453309,-500.0,0.00041095,120]
[419660218,1775261453324,-500.0,0.00041095,120]
[419660219,1775261453333,-500.0,0.00041095,120]
[419660220,1775261453342,-1213.32,0.00041095,120]
[419660221,1775261453351,-500.0,0.00041095,120]
[419660222,1775261453360,-2363.29,0.00041095,14]
[419660223,1775261453369,-500.0,0.00041095,120]
[419660224,1775261453378,-500.0,0.00041095,120]
[419660225,1775261453387,-500.0,0.00041095,120]
[419660226,1775261453396,-837.07,0.00041095,120]
[419660227,1775261453406,-500.0,0.00041095,120]
[419660228,1775261453415,-500.0,0.00041095,120]
[419660229,1775261453424,-500.0,0.00041095,120]
[419660230,1775261453434,-500.0,0.00041095,120]
[419660231,1775261453447,-1375.77,0.00041095,120]
[419660232,1775261453457,-500.0,0.00041095,120]
[419660233,1775261453466,-620.85,0.00041095,120]
[419660234,1775261453475,-500.0,0.00041095,120]
[419660235,1775261453485,-500.0,0.00041095,120]
[419660236,1775261453494,-542.34,0.00041095,120]
[419660237,1775261453504,-522.63,0.00041095,120]
[419660238,1775261453514,-500.0,0.00041095,120]
[419660239,1775261453524,-500.0,0.00041095,120]
[419660240,1775261453536,-252.9413564,0.00041095,120]
[419660241,1775261453546,-500.0,0.00041095,120]
[419660242,1775261453556,-500.0,0.00041095,120]
[419660243,1775261453566,-500.0,0.00041095,120]
[419660244,1775261453576,-1268.92,0.00041095,120]
[419660245,1775261453586,-500.0,0.00041095,120]
[419660246,1775261453598,-500.0,0.00041095,120]
[419660247,1775261453608,-500.0,0.00041095,120]
[419660248,1775261453619,-500.0,0.00041095,30]
[419660249,1775261453629,-662.88,0.00041095,120]
[419660250,1775261453639,-500.0,0.00041095,120]
[419660251,1775261453649,-500.0,0.00041095,120]
[419660252,1775261453659,-500.0,0.00041095,120]
[419660253,1775261453669,-500.0,0.00041095,120]
[419660254,1775261453678,-500.0,0.00041095,120]
[419660255,1775261453689,-3892.18,0.00041095,120]
[419660256,1775261453699,-500.0,0.00041095,120]
[419660257,1775261453709,-500.0,0.00041095,120]
[419660258,1775261453719,-500.0,0.00041095,120]
[419660259,1775261453728,-1626.6,0.00041095,120]
[419660260,1775261453737,-1734.77,0.00041095,60]
[419660261,1775261453747,-1196.01,0.00041095,120]
[419660262,1775261453756,-4972.98,0.00041095,14]
[419660263,1775261453767,-500.0,0.00041095,120]
[419660264,1775261453778,-1629.45,0.00041095,120]
[419660265,1775261453788,-984.87,0.00041095,120]
[419660266,1775261453798,-500.0,0.00041095,120]
[419660267,1775261453808,-885.27,0.00041095,120]
[419660268,1775261453818,-368.22537792,0.00041095,120]
[419660269,1775261453828,-500.0,0.00041095,120]
[419660270,1775261453837,-770.48,0.00041095,120]
[419660271,1775261453846,-500.0,0.00041095,120]
[419660272,1775261453856,-500.0,0.00041095,120]
[419660273,1775261453866,-500.0,0.00041095,120]
[419660274,1775261453877,-625.9,0.00041095,120]
[419660275,1775261453887,-500.0,0.00041095,120]
[419660276,1775261453896,-500.0,0.00041095,120]
[419660277,1775261453905,-500.0,0.00041095,120]
[419660278,1775261453915,-1702.88,0.00041095,4]
[419660279,1775261453924,-592.0,0.00041095,7]
[419660280,1775261453934,-1170.88,0.00041095,120]
[419660281,1775261453943,-1183.73,0.00041095,120]
[419660282,1775261453953,-1000.0,0.00041095,120]
[419660283,1775261453963,-322.97092238,0.00041095,120]
[419660284,1775261453972,-510.60741372,0.00041095,120]
[419660285,1775261453982,-500.0,0.00041095,120]
[419660286,1775261453992,-500.0,0.00041095,120]
[419660287,1775261454001,-500.0,0.00041095,120]
[419660288,1775261454011,-500.0,0.00041095,120]
[419660289,1775261454021,-1529.48,0.00041095,120]
[419660290,1775261454030,-500.0,0.00041095,120]
[419660291,1775261454039,-737.58,0.00041095,120]
[419660292,1775261454049,-1262.91,0.00041095,120]
[419660293,1775261454058,-500.0,0.00041095,120]
[419660294,1775261454069,-704.79,0.00041095,120]
[419660295,1775261454079,-500.0,0.00041095,120]
[419660296,1775261454088,-700.56,0.00041095,120]
[419660297,1775261454100,-703.78,0.00041095,120]
[419660298,1775261454111,-500.0,0.00041095,120]
[419660299,1775261454121,-500.0,0.00041095,120]
[419660300,1775261454132,-500.0,0.00041095,120]
[419660301,1775261454141,-500.0,0.00041095,120]
[419660302,1775261454151,-500.0,0.00041095,120]